fUST/lending_fUST_20260616
["ID","MTS","AMOUNT","RATE_DAILY","PERIOD"]
[425217620,1781613043000,-284.15178564,0.00015673,2]
[425217617,1781613043000,-503.57069799,0.00015673,2]
[425217615,1781613043000,-500.0,0.00015673,2]
[425217614,1781613043000,-500.0,0.00015673,2]
[425217618,1781613043000,-500.0,0.00015673,2]
[425217616,1781613043000,-500.0,0.00015673,2]
[425217613,1781613043000,-468.51661088,0.00015673,2]
[425217611,1781613043000,-500.0,0.00015673,2]
[425217612,1781613043000,-538.15,0.00015673,2]
[425217610,1781613043000,-500.0,0.00015673,2]
[425217608,1781613043000,-440.65916803,0.00015673,2]
[425217607,1781613043000,-500.0,0.00015673,2]
[425217609,1781613043000,-500.0,0.00015673,2]
[425217597,1781613043000,-500.0,0.00015673,2]
[425217593,1781613043000,-500.0,0.00015673,2]
[425217596,1781613043000,-500.0,0.00015673,2]
[425217601,1781613043000,-500.0,0.00015673,2]
[425217595,1781613043000,-500.0,0.00015673,2]
[425217598,1781613043000,-500.0,0.00015673,2]
[425217600,1781613043000,-500.0,0.00015673,2]
[425217602,1781613043000,-500.0,0.00015673,2]
[425217603,1781613043000,-249.76741921,0.00015673,2]
[425217599,1781613043000,-501.30559069,0.00015673,2]
[425217641,1781613044000,-500.0,0.00018387,2]
[425217640,1781613044000,-500.0,0.00018387,2]
[425217633,1781613044000,-314.44941317,0.00017317,2]
[425217635,1781613044000,-160.0,0.00017523,2]
[425217644,1781613044000,-500.0,0.00018387,2]
[425217656,1781613044000,-500.0,0.00018387,2]
[425217643,1781613044000,-500.0,0.00018387,2]
[425217645,1781613044000,-500.0,0.00018387,2]
[425217650,1781613044000,-500.0,0.00018387,2]
[425217655,1781613044000,-500.0,0.00018387,2]
[425217638,1781613044000,-500.0,0.00018387,2]
[425217634,1781613044000,-160.0,0.00017523,2]
[425217639,1781613044000,-500.0,0.00018387,2]
[425217624,1781613044000,-463.97,0.00015947,2]
[425217637,1781613044000,-500.0,0.00018387,2]
[425217636,1781613044000,-507.07720343,0.00018288,2]
[425217632,1781613044000,-864.0,0.00017242,2]
[425217625,1781613044000,-500.0,0.00015947,2]
[425217631,1781613044000,-500.0,0.00017043,2]
[425217622,1781613044000,-500.0,0.00015947,2]
[425217621,1781613044000,-720.0,0.00015674,2]
[425217630,1781613044000,-500.0,0.00016769,2]
[425217628,1781613044000,-557.29,0.00016221,2]
[425217626,1781613044000,-500.0,0.00016221,2]
[425217623,1781613044000,-500.0,0.00015947,2]
[425217651,1781613044000,-500.0,0.00018387,2]
[425217627,1781613044000,-220.53,0.00016221,2]
[425217629,1781613044000,-500.0,0.00016495,2]
[425217642,1781613044000,-500.0,0.00018387,2]
[425217649,1781613044000,-500.0,0.00018387,2]
[425217659,1781613044000,-500.0,0.00018387,2]
[425217652,1781613044000,-500.0,0.00018387,2]
[425217682,1781613044000,-13460.20052547,0.00018389,2]
[425217681,1781613044000,-404.13471359,0.00018387,2]
[425217679,1781613044000,-500.0,0.00018387,2]
[425217680,1781613044000,-95.86528641,0.00018387,2]
[425217677,1781613044000,-500.0,0.00018387,2]
[425217673,1781613044000,-500.0,0.00018387,2]
[425217678,1781613044000,-500.0,0.00018387,2]
[425217675,1781613044000,-500.0,0.00018387,2]
[425217676,1781613044000,-500.0,0.00018387,2]
[425217674,1781613044000,-500.0,0.00018387,2]
[425217672,1781613044000,-500.0,0.00018387,2]
[425217667,1781613044000,-500.0,0.00018387,2]
[425217654,1781613044000,-500.0,0.00018387,2]
[425217661,1781613044000,-500.0,0.00018387,2]
[425217665,1781613044000,-500.0,0.00018387,2]
[425217666,1781613044000,-604.50063493,0.00018387,2]
[425217646,1781613044000,-500.0,0.00018387,2]
[425217648,1781613044000,-500.0,0.00018387,2]
[425217647,1781613044000,-500.0,0.00018387,2]
[425217657,1781613044000,-587.90768662,0.00018387,2]
[425217662,1781613044000,-500.0,0.00018387,2]
[425217658,1781613044000,-500.0,0.00018387,2]
[425217653,1781613044000,-500.0,0.00018387,2]
[425217669,1781613044000,-500.0,0.00018387,2]
[425217671,1781613044000,-500.0,0.00018387,2]
[425217660,1781613044000,-500.0,0.00018387,2]
[425217670,1781613044000,-500.0,0.00018387,2]
[425217663,1781613044000,-500.0,0.00018387,2]
[425217664,1781613044000,-500.0,0.00018387,2]
[425217668,1781613044000,-500.0,0.00018387,2]
[425217692,1781613046000,-507.07720343,0.0001909,2]
[425217688,1781613046000,-3919.97699223,0.00018389,2]
[425217691,1781613046000,-1000.0,0.00018966,2]
[425217690,1781613046000,-176.391,0.00018904,2]
[425217693,1781613046000,-738.3099688,0.00019201,2]
[425217689,1781613046000,-678.13913753,0.00018625,2]
[425217696,1781613046000,-575.14624428,0.00019605,2]
[425217695,1781613046000,-368.4620584,0.00019605,2]
[425217698,1781613046000,-156.0,0.00019776,2]
[425217697,1781613046000,-445.0,0.00019726,2]
[425217694,1781613046000,-166.0,0.00019241,2]
[425217699,1781613046000,-456.45941171,0.00019891,2]
[425217701,1781613111000,-170.8209863,0.00018062,2]
[425217702,1781613132000,-4601.77119271,0.00019701,2]
[425217744,1781614232000,-433.45811007,0.00015416,2]
[425217775,1781614240000,-4168.31308264,0.00015416,2]
[425217788,1781614241000,-300.0,0.00019603,2]
[425217806,1781614241000,-447.39,0.000208,2]
[425217795,1781614241000,-186.0,0.00020235,2]
[425217797,1781614241000,-342.80215431,0.00020634,2]
[425217798,1781614241000,-292.89292188,0.00020634,2]
[425217796,1781614241000,-157.66525988,0.00020622,2]
[425217789,1781614241000,-500.0,0.00019604,2]
[425217793,1781614241000,-388.3,0.00019878,2]
[425217794,1781614241000,-159.9019419,0.00020003,2]
[425217787,1781614241000,-310.70521252,0.00019602,2]
[425217780,1781614241000,-159.9019419,0.00018291,2]
[425217790,1781614241000,-29405.3822473,0.00019605,2]
[425217784,1781614241000,-752.48823,0.00019309,2]
[425217791,1781614241000,-160.0,0.00019698,2]
[425217807,1781614241000,-300.0,0.000208,5]
[425217782,1781614241000,-303.84960746,0.00018386,2]
[425217781,1781614241000,-159.0,0.00018384,3]
[425217779,1781614241000,-1101.7301445,0.00018098,2]
[425217778,1781614241000,-900.0,0.00018078,2]
[425217776,1781614241000,-500.0,0.00015672,2]
[425217785,1781614241000,-239.27,0.00019376,2]
[425217801,1781614241000,-248.35636408,0.000208,2]
[425217777,1781614241000,-201.44,0.00017376,2]
[425217803,1781614241000,-284.04982398,0.000208,2]
[425217799,1781614241000,-334.40003309,0.00020634,2]
[425217827,1781614241000,-989183.86347028,0.00021371,2]
[425217826,1781614241000,-53713.5709503,0.00021371,2]
[425217825,1781614241000,-300.0,0.0002137,4]
[425217823,1781614241000,-600.0,0.00021317,10]
[425217824,1781614241000,-167.97692292,0.00021332,2]
[425217820,1781614241000,-176.955409,0.00021256,2]
[425217816,1781614241000,-71741.37598745,0.00021,3]
[425217819,1781614241000,-160.0,0.00021134,4]
[425217813,1781614241000,-309.365563,0.00020913,2]
[425217828,1781614241000,-4886.15017255,0.00021371,2]
[425217811,1781614241000,-160.0,0.00020913,2]
[425217800,1781614241000,-160.0,0.00020665,3]
[425217814,1781614241000,-208.89923465,0.00020951,2]
[425217802,1781614241000,-279.07930007,0.000208,2]
[425217804,1781614241000,-285.47025124,0.000208,2]
[425217809,1781614241000,-797.0,0.000209,2]
[425217810,1781614241000,-167.97692292,0.000209,2]
[425217812,1781614241000,-234.682781,0.00020913,2]
[425217822,1781614241000,-200.0,0.00021299,3]
[425217817,1781614241000,-417.15472785,0.00021,3]
[425217805,1781614241000,-11860.32177877,0.000208,2]
[425217866,1781614269000,1919.4427976,0.00023071,120]
[425217877,1781614646000,1000.0,7.6e-05,2]
[425217876,1781614646000,1000.0,7.6e-05,2]
[425217953,1781615432000,-500.0,0.00014998,2]
[425217946,1781615432000,-160.00182149,0.00014375,2]
[425217949,1781615432000,-500.0,0.00014998,2]
[425217947,1781615432000,-974.63935234,0.00014475,2]
[425217945,1781615432000,-473.77097331,0.00014375,2]
[425217948,1781615432000,-156.0,0.0001475,2]
[425217935,1781615432000,-329.115,0.00011158,2]
[425217940,1781615432000,-932.08063796,0.00014275,2]
[425217941,1781615432000,-3004.8104786,0.00014348,2]
[425217939,1781615432000,-869.58695203,0.00014175,2]
[425217937,1781615432000,-3845.95424901,0.000115,2]
[425217938,1781615432000,-1197.95450844,0.00014175,2]
[425217936,1781615432000,-4670.885,0.00011158,2]
[425217950,1781615432000,-500.0,0.00014998,2]
[425217943,1781615432000,-310.13948427,0.00014375,2]
[425217952,1781615432000,-500.0,0.00014998,2]
[425217955,1781615432000,-500.0,0.00014999,2]
[425217958,1781615432000,-380.77776009,0.00014999,2]
[425217954,1781615432000,-368.90917371,0.00014999,2]
[425217969,1781615432000,-74.83414248,0.00014999,2]
[425217968,1781615432000,-500.0,0.00014999,2]
[425217967,1781615432000,-500.0,0.00014999,2]
[425217964,1781615432000,-500.0,0.00014999,2]
[425217965,1781615432000,-500.0,0.00014999,2]
[425217963,1781615432000,-500.0,0.00014999,2]
[425217966,1781615432000,-525.2407266,0.00014999,2]
[425217962,1781615432000,-510.19666185,0.00014999,2]
[425217960,1781615432000,-500.0,0.00014999,2]
[425217959,1781615432000,-119.22223991,0.00014999,2]
[425217957,1781615432000,-593.06281165,0.00014999,2]
[425217951,1781615432000,-509.29798978,0.00014998,2]
[425217956,1781615432000,-642.59931167,0.00014999,2]
[425217961,1781615432000,-500.0,0.00014999,2]
[425218038,1781615446000,-500.0,0.00014999,2]
[425218034,1781615446000,-513.63936712,0.00014999,2]
[425218031,1781615446000,-560.4500635,0.00014999,2]
[425218028,1781615446000,-500.0,0.00014999,2]
[425218032,1781615446000,-500.0,0.00014999,2]
[425218030,1781615446000,-500.0,0.00014999,2]
[425218036,1781615446000,-146.85365072,0.00014999,2]
[425218029,1781615446000,-164.8141107,0.00014999,2]
[425218033,1781615446000,-606.22661118,0.00014999,2]
[425218027,1781615446000,-500.0,0.00014999,2]
[425218026,1781615446000,-500.0,0.00014999,2]
[425218024,1781615446000,-1167.5285118,0.00014849,2]
[425218025,1781615446000,-457.88768498,0.00014999,2]
[425218035,1781615446000,-500.0,0.00014999,2]
[425218037,1781615446000,-353.14634928,0.00014999,2]
[425218056,1781615446000,-500.0,0.00015546,2]
[425218050,1781615446000,-500.0,0.00015273,2]
[425218053,1781615446000,-500.0,0.00015273,2]
[425218054,1781615446000,-176.955409,0.00015311,2]
[425218055,1781615446000,-502.61,0.00015546,2]
[425218044,1781615446000,-500.0,0.00015272,2]
[425218042,1781615446000,-500.0,0.00015272,2]
[425218048,1781615446000,-500.0,0.00015273,2]
[425218047,1781615446000,-219.99,0.00015273,2]
[425218040,1781615446000,-1264.47588058,0.00015206,2]
[425218046,1781615446000,-500.0,0.00015273,2]
[425218045,1781615446000,-500.0,0.00015273,2]
[425218049,1781615446000,-500.0,0.00015273,2]
[425218041,1781615446000,-500.0,0.00015272,2]
[425218039,1781615446000,-9808.92280972,0.00015,2]
[425218051,1781615446000,-500.0,0.00015273,2]
[425218043,1781615446000,-500.0,0.00015272,2]
[425218075,1781615447000,-500.0,0.00016095,2]
[425218070,1781615447000,-500.0,0.00015821,2]
[425218068,1781615447000,-500.0,0.0001582,2]
[425218072,1781615447000,-500.0,0.00015821,2]
[425218069,1781615447000,-500.0,0.00015821,2]
[425218071,1781615447000,-500.0,0.00015821,2]
[425218066,1781615447000,-203.72516796,0.00015667,7]
[425218079,1781615447000,-500.0,0.00016095,2]
[425218077,1781615447000,-500.0,0.00016095,2]
[425218064,1781615447000,-500.0,0.00015547,2]
[425218067,1781615447000,-259.14932048,0.000157,2]
[425218060,1781615447000,-513.25,0.00015547,2]
[425218061,1781615447000,-500.0,0.00015547,2]
[425218062,1781615447000,-428.77,0.00015547,2]
[425218065,1781615447000,-500.0,0.00015547,2]
[425218073,1781615447000,-500.0,0.00015821,2]
[425218063,1781615447000,-500.0,0.00015547,2]
[425218057,1781615447000,-310.55,0.00015546,2]
[425218059,1781615447000,-500.0,0.00015547,2]
[425218078,1781615447000,-154.03,0.00016095,2]
[425218058,1781615447000,-216.69973284,0.00015546,2]
[425218074,1781615447000,-500.0,0.00016094,2]
[425218080,1781615447000,-1294.05012532,0.00016238,2]
[425218097,1781615447000,-986.74871485,0.00018804,2]
[425218099,1781615447000,-160.0,0.00019405,2]
[425218076,1781615447000,-216.99,0.00016095,2]
[425218100,1781615447000,-500.0,0.00019603,2]
[425218101,1781615447000,-345.07394293,0.00019603,2]
[425218093,1781615447000,-1323.62437021,0.00017269,2]
[425218096,1781615447000,-176.955409,0.00018534,2]
[425218095,1781615447000,-1353.19861511,0.000183,2]
[425218094,1781615447000,-176.955409,0.0001746,2]
[425218088,1781615447000,-500.0,0.00016642,2]
[425218098,1781615447000,-1379.95554853,0.00019332,2]
[425218090,1781615447000,-227.41,0.00016916,2]
[425218092,1781615447000,-259.23,0.00017191,2]
[425218086,1781615447000,-176.955409,0.00016386,2]
[425218084,1781615447000,-500.0,0.00016369,2]
[425218081,1781615447000,-15000.0,0.00016248,2]
[425218083,1781615447000,-565.34,0.00016369,2]
[425218085,1781615447000,-394.95,0.00016369,2]
[425218091,1781615447000,-500.0,0.00016917,2]
[425218087,1781615447000,-305.58775197,0.00016589,7]
[425218082,1781615447000,-500.0,0.00016368,2]
[425218089,1781615447000,-500.0,0.00016643,2]
[425218190,1781616476000,6980.17327674,0.00023056,30]
[425218215,1781616632000,-652.22620711,0.00013402,13]
[425218225,1781616632000,-473.92226533,0.00013537,2]
[425218223,1781616632000,-4347.77379289,0.00013402,13]
[425218282,1781616641000,-1658.44732523,0.00013537,2]
[425218285,1781616641000,-500.0,0.00014998,2]
[425218284,1781616641000,-1762.6474137,0.00013537,2]
[425218286,1781616641000,-872.0066084,0.00015035,2]
[425218287,1781616641000,-863.77579612,0.00015035,2]
[425218288,1781616641000,-500.680463,0.00015272,2]
[425218290,1781616641000,-500.0,0.00016368,2]
[425218300,1781616641000,-897.02892935,0.000164,2]
[425218302,1781616641000,-291.262024,0.00016438,2]
[425218305,1781616641000,-154.92605707,0.00016642,2]
[425218289,1781616641000,-976.81778438,0.00016193,2]
[425218306,1781616641000,-263.54,0.00016642,2]
[425218307,1781616641000,-500.0,0.00016642,2]
[425218304,1781616641000,-571.03,0.00016642,2]
[425218301,1781616641000,-165.3614641,0.00016433,2]
[425218303,1781616641000,-500.0,0.00016641,2]
[425218312,1781616641000,-91.38152377,0.00016642,2]
[425218313,1781616641000,-408.61847623,0.00016642,2]
[425218310,1781616641000,-500.0,0.00016642,2]
[425218308,1781616641000,-500.0,0.00016642,2]
[425218309,1781616641000,-500.0,0.00016642,2]
[425218311,1781616641000,-500.0,0.00016642,2]
[425218296,1781616641000,-500.0,0.00016368,2]
[425218298,1781616641000,-2634.6289,0.00016368,2]
[425218294,1781616641000,-500.0,0.00016368,2]
[425218291,1781616641000,-509.04509776,0.00016368,2]
[425218314,1781616641000,-162.82784982,0.00016642,2]
[425218329,1781616673000,-2000.8214882,0.00013402,13]
[425218331,1781616709000,-1532.637243,0.00016475,2]
[425218332,1781616727000,-500.0,0.00016641,2]
[425218412,1781617831000,-576.79787074,0.00013812,7]
[425218411,1781617831000,-264.5596509,0.00013598,2]
[425218413,1781617831000,-2971.40262317,0.00013812,7]
[425218416,1781617831000,-2434.64588002,0.00014088,7]
[425218415,1781617831000,-2289.5408504,0.0001396,2]
[425218414,1781617831000,-1238.54838186,0.0001396,2]
[425218545,1781617840000,-300.0,0.00014792,2]
[425218546,1781617840000,-300.0,0.00014792,2]
[425218548,1781617840000,-300.0,0.00014792,2]
[425218550,1781617840000,-300.0,0.00014792,2]
[425218554,1781617840000,-300.0,0.00014792,2]
[425218558,1781617840000,-300.0,0.00014792,2]
[425218556,1781617840000,-300.0,0.00014792,2]
[425218552,1781617840000,-300.0,0.00014792,2]
[425218562,1781617840000,-300.0,0.00014792,2]
[425218564,1781617840000,-300.0,0.00014792,2]
[425218572,1781617840000,-500.0,0.00014916,2]
[425218566,1781617840000,-300.0,0.00014792,2]
[425218568,1781617840000,-2866.0870944,0.00014792,2]
[425218570,1781617840000,-162.87858011,0.00014812,2]
[425218582,1781617840000,-500.0,0.00015065,2]
[425218560,1781617840000,-300.0,0.00014792,2]
[425218543,1781617840000,-300.0,0.00014792,2]
[425218516,1781617840000,-244.04667166,0.00014503,7]
[425218541,1781617840000,-300.0,0.00014792,2]
[425218504,1781617840000,-4820.33643123,0.00014244,2]
[425218506,1781617840000,-503.5616364,0.00014244,2]
[425218498,1781617840000,-1113.55461389,0.00014088,7]
[425218500,1781617840000,-292.85309423,0.00014101,2]
[425218502,1781617840000,-517.05268707,0.00014244,2]
[425218508,1781617840000,-3418.53319849,0.00014244,2]
[425218512,1781617840000,-2893.30920771,0.00014244,2]
[425218539,1781617840000,-300.0,0.00014792,2]
[425218576,1781617840000,-504.56,0.00014916,2]
[425218524,1781617840000,-3304.15382225,0.00014503,7]
[425218528,1781617840000,-2898.82444703,0.00014712,2]
[425218532,1781617840000,-500.0,0.00014791,2]
[425218530,1781617840000,-500.0,0.00014791,2]
[425218533,1781617840000,-500.0,0.00014791,2]
[425218535,1781617840000,-500.0,0.00014791,2]
[425218537,1781617840000,-337.17215018,0.00014791,2]
[425218526,1781617840000,-417.15472785,0.00014503,7]
[425218574,1781617840000,-500.0,0.00014916,2]
[425218514,1781617840000,-401.6797963,0.00014395,2]
[425218583,1781617840000,-500.0,0.00015065,2]
[425218625,1781617840000,-500.0,0.00015189,2]
[425218623,1781617840000,-500.0,0.00015189,2]
[425218628,1781617840000,-500.0,0.00015189,2]
[425218621,1781617840000,-500.0,0.00015189,2]
[425218630,1781617840000,-500.0,0.00015189,2]
[425218632,1781617840000,-500.0,0.00015189,2]
[425218634,1781617840000,-500.0,0.00015189,2]
[425218626,1781617840000,-500.0,0.00015189,2]
[425218640,1781617840000,-500.0,0.00015189,2]
[425218636,1781617840000,-500.0,0.00015189,2]
[425218641,1781617840000,-500.0,0.00015189,2]
[425218647,1781617840000,-80.76789408,0.00015189,2]
[425218650,1781617840000,-419.23210592,0.00015189,2]
[425218651,1781617840000,-201.83043456,0.00015189,2]
[425218645,1781617840000,-500.0,0.00015189,2]
[425218585,1781617840000,-600.0,0.00015087,2]
[425218638,1781617840000,-623.69556116,0.00015189,2]
[425218619,1781617840000,-500.0,0.00015189,2]
[425218644,1781617840000,-500.0,0.00015189,2]
[425218611,1781617840000,-500.0,0.00015189,2]
[425218617,1781617840000,-500.0,0.00015189,2]
[425218578,1781617840000,-3548.20049391,0.00014917,7]
[425218579,1781617840000,-445.98168906,0.00014923,2]
[425218586,1781617840000,-500.0,0.00015188,2]
[425218590,1781617840000,-500.0,0.00015188,2]
[425218588,1781617840000,-500.0,0.00015188,2]
[425218605,1781617840000,-500.0,0.00015189,2]
[425218594,1781617840000,-500.0,0.00015188,2]
[425218596,1781617840000,-500.0,0.00015188,2]
[425218609,1781617840000,-500.0,0.00015189,2]
[425218615,1781617840000,-500.0,0.00015189,2]
[425218592,1781617840000,-500.0,0.00015188,2]
[425218600,1781617840000,-500.0,0.00015188,2]
[425218602,1781617840000,-500.0,0.00015189,2]
[425218613,1781617840000,-500.0,0.00015189,2]
[425218604,1781617840000,-500.0,0.00015189,2]
[425218598,1781617840000,-500.0,0.00015188,2]
[425218607,1781617840000,-202.41234505,0.00015189,2]
[425218792,1781617847000,-500.0,0.00015887,2]
[425218793,1781617847000,-500.0,0.00016012,2]
[425218803,1781617847000,-185.67369651,0.00016267,2]
[425218789,1781617847000,-500.0,0.00015738,2]
[425218786,1781617847000,-3548.20049392,0.00015469,7]
[425218788,1781617847000,-500.0,0.00015613,2]
[425218787,1781617847000,-417.15472785,0.00015469,7]
[425218791,1781617847000,-160.876572,0.00015768,2]
[425218780,1781617847000,-500.0,0.0001519,2]
[425218785,1781617847000,-500.0,0.00015464,2]
[425218782,1781617847000,-500.0,0.00015339,2]
[425218781,1781617847000,-165.3614641,0.00015246,2]
[425218778,1781617847000,-114.09443456,0.0001519,2]
[425218790,1781617847000,-500.0,0.00015738,2]
[425218784,1781617847000,-500.0,0.00015464,2]
[425218779,1781617847000,-385.90556544,0.0001519,2]
[425218777,1781617847000,-500.0,0.00015189,2]
[425218773,1781617847000,-500.0,0.00015189,2]
[425218776,1781617847000,-500.0,0.00015189,2]
[425218775,1781617847000,-500.0,0.00015189,2]
[425218774,1781617847000,-500.0,0.00015189,2]
[425218772,1781617847000,-500.0,0.00015189,2]
[425218771,1781617847000,-32.90556544,0.00015189,2]
[425218770,1781617847000,-265.264,0.00015189,2]
[425218794,1781617847000,-500.0,0.00016012,2]
[425218783,1781617847000,-289.45718754,0.00015339,2]
[425218798,1781617847000,-151.5,0.00016093,2]
[425218802,1781617847000,-500.0,0.00016161,2]
[425218799,1781617847000,-151.5,0.00016093,2]
[425218797,1781617847000,-151.5,0.00016093,2]
[425218823,1781617847000,-3117.0,0.000166,2]
[425218825,1781617847000,-361.64993412,0.00016641,2]
[425218822,1781617847000,-160.876572,0.00016598,2]
[425218821,1781617847000,-720.0,0.00016596,2]
[425218820,1781617847000,-500.0,0.0001656,2]
[425218819,1781617847000,-500.0,0.00016435,2]
[425218818,1781617847000,-347.23357528,0.00016367,2]
[425218817,1781617847000,-500.0,0.00016367,2]
[425218806,1781617847000,-500.0,0.00016367,2]
[425218815,1781617847000,-500.0,0.00016367,2]
[425218816,1781617847000,-500.0,0.00016367,2]
[425218813,1781617847000,-500.0,0.00016367,2]
[425218824,1781617847000,-500.0,0.00016641,2]
[425218811,1781617847000,-500.0,0.00016367,2]
[425218800,1781617847000,-151.5,0.00016093,2]
[425218795,1781617847000,-2898.82444697,0.00016025,2]
[425218804,1781617847000,-245.0593422,0.00016286,2]
[425218801,1781617847000,-234.55804282,0.00016093,2]
[425218805,1781617847000,-500.0,0.00016286,2]
[425218796,1781617847000,-151.5,0.00016093,2]
[425218814,1781617847000,-500.0,0.00016367,2]
[425218809,1781617847000,-500.0,0.00016367,2]
[425218812,1781617847000,-500.0,0.00016367,2]
[425218808,1781617847000,-500.0,0.00016367,2]
[425218807,1781617847000,-500.0,0.00016367,2]
[425218810,1781617847000,-500.0,0.00016367,2]
[425218839,1781618435000,-433.45811007,9.9e-05,2]
[425218840,1781618451000,-500.0,9.9e-05,2]
[425218841,1781618468000,-500.0,9.9e-05,2]
[425218842,1781618485000,-500.0,9.9e-05,2]
[425218868,1781618502000,-500.0,9.9e-05,2]
[425218892,1781618519000,-500.0,9.9e-05,2]
[425218894,1781618535000,-1000.0,0.0001,2]
[425218896,1781618552000,-254.61393159,0.00011925,2]
[425218958,1781619032000,-3397.9589528,0.00012,2]
[425218973,1781619032000,-500.0,0.00014916,2]
[425218972,1781619032000,-500.0,0.00014791,2]
[425218975,1781619032000,-500.800641,0.00015065,2]
[425218989,1781619032000,-500.0,0.00017199,2]
[425218986,1781619032000,-392.40446214,0.00016433,2]
[425218987,1781619032000,-375.96746045,0.00017153,2]
[425218980,1781619032000,-400.0,0.00015738,2]
[425218982,1781619032000,-272.27362561,0.00015833,2]
[425218970,1781619032000,-546.48,0.00014791,2]
[425218968,1781619032000,-500.0,0.00014791,2]
[425218964,1781619032000,-500.0,0.00014791,2]
[425218966,1781619032000,-500.0,0.00014791,2]
[425218962,1781619032000,-300.0,0.0001479,2]
[425218957,1781619032000,-1226.18926,0.00012,2]
[425218960,1781619032000,-940.47915725,0.00012,2]
[425218979,1781619032000,-500.0,0.00015464,2]
[425218977,1781619032000,-500.0,0.0001519,2]
[425218984,1781619032000,-328.97152789,0.00016374,2]
[425218999,1781619032000,-166.3153537,0.00017302,2]
[425218997,1781619032000,-353.76419554,0.000172,2]
[425219022,1781619032000,-300.76006588,0.00018509,2]
[425219026,1781619032000,-433.45811007,0.00018509,2]
[425219016,1781619032000,-586.86170779,0.00018493,2]
[425219020,1781619032000,-359.38481128,0.00018509,2]
[425219018,1781619032000,-500.0,0.00018509,2]
[425219007,1781619032000,-160.0,0.00017768,2]
[425219009,1781619032000,-160.0,0.00017768,2]
[425219014,1781619032000,-151.0,0.00018463,2]
[425219012,1781619032000,-1407.09809217,0.0001802,2]
[425219003,1781619032000,-381.47,0.00017473,2]
[425219024,1781619032000,-12.56856997,0.00018509,2]
[425219001,1781619032000,-998.7497796,0.00017352,2]
[425219011,1781619032000,-448.46224244,0.00017959,2]
[425218991,1781619032000,-500.0,0.00017199,2]
[425218995,1781619032000,-353.76419554,0.000172,2]
[425218993,1781619032000,-353.76419556,0.000172,2]
[425219005,1781619032000,-902.56796568,0.00017766,2]
[425219095,1781619040000,-166.58662532,0.00019205,2]
[425219092,1781619040000,-500.0,0.00019057,2]
[425219097,1781619040000,-600.0,0.00019279,2]
[425219099,1781619040000,-2174.11833528,0.00019347,2]
[425219103,1781619040000,-500.0,0.00019446,2]
[425219098,1781619040000,-500.0,0.00019331,2]
[425219101,1781619040000,-500.0,0.00019446,2]
[425219094,1781619040000,-925.88426406,0.00019132,2]
[425219100,1781619040000,-2196.39217824,0.00019424,2]
[425219091,1781619040000,-160.876572,0.00019001,2]
[425219082,1781619040000,-254.61393159,0.00016416,2]
[425219096,1781619040000,-445.0,0.0001927,2]
[425219088,1781619040000,-500.0,0.00018783,2]
[425219089,1781619040000,-177.612,0.00018906,2]
[425219087,1781619040000,-398.06378202,0.00018783,2]
[425219086,1781619040000,-100.93621798,0.00018783,2]
[425219085,1781619040000,-201.44,0.00018694,2]
[425219084,1781619040000,-1020.68177494,0.0001851,2]
[425219106,1781619040000,-500.0,0.00019446,2]
[425219083,1781619040000,-53.97331996,0.00018509,2]
[425219090,1781619040000,-354.5718915,0.00018912,2]